fUSD/lending_fUSD_20260327
["ID","MTS","AMOUNT","RATE_DAILY","PERIOD"]
[418951632,1774630240595,-500.0,0.00015999,2]
[418951633,1774630240604,-500.0,0.00015999,2]
[418951634,1774630240613,-500.0,0.00015999,2]
[418951635,1774630240622,-500.0,0.00015999,2]
[418951636,1774630240631,-500.0,0.00015999,2]
[418951637,1774630240640,-500.0,0.00015999,2]
[418951638,1774630240650,-500.0,0.00015999,2]
[418951639,1774630240659,-500.0,0.00015999,2]
[418951640,1774630240668,-199.01461203,0.00015999,2]
[418951641,1774630240677,-500.0,0.00015999,2]
[418951642,1774630240686,-173.34235598,0.00015999,2]
[418951643,1774630240695,-574.6,0.00015999,2]
[418951644,1774630240704,-574.6,0.00015999,2]
[418951645,1774630240713,-574.6,0.00015999,2]
[418951646,1774630240723,-574.6,0.00015999,2]
[418951647,1774630240732,-574.6,0.00015999,2]
[418951648,1774630240741,-574.6,0.00015999,2]
[418951649,1774630240750,-574.6,0.00015999,2]
[418951650,1774630240759,-574.6,0.00015999,2]
[418951651,1774630240768,-574.6,0.00015999,2]
[418951652,1774630240777,-574.6,0.00015999,2]
[418951653,1774630240787,-574.6,0.00015999,2]
[418951654,1774630240796,-574.6,0.00015999,2]
[418951655,1774630240805,-574.6,0.00015999,2]
[418951656,1774630240814,-574.6,0.00015999,2]
[418951657,1774630240823,-574.6,0.00015999,2]
[418951658,1774630240832,-574.6,0.00015999,2]
[418951659,1774630240841,-574.6,0.00015999,2]
[418951660,1774630240851,-574.6,0.00015999,2]
[418951661,1774630240859,-574.6,0.00015999,2]
[418951662,1774630240869,-574.6,0.00015999,2]
[418951663,1774630240878,-574.72409801,0.00015999,2]
[418951664,1774630240887,-500.0,0.00015999,2]
[418951665,1774630240895,-500.0,0.00015999,2]
[418951666,1774630240905,-500.0,0.00015999,2]
[418951667,1774630240914,-500.0,0.00015999,2]
[418951668,1774630240924,-500.0,0.00015999,2]
[418951669,1774630240933,-500.0,0.00015999,2]
[418951670,1774630240942,-500.0,0.00015999,2]
[418951671,1774630240951,-500.0,0.00015999,2]
[418951672,1774630240961,-500.0,0.00015999,2]
[418951673,1774630240970,-500.0,0.00015999,2]
[418951674,1774630240979,-500.0,0.00015999,2]
[418951675,1774630240989,-500.0,0.00015999,2]
[418951676,1774630240998,-500.0,0.00015999,2]
[418951677,1774630241008,-500.0,0.00015999,2]
[418951678,1774630241017,-500.0,0.00015999,2]
[418951679,1774630241027,-500.0,0.00015999,2]
[418951680,1774630241037,-500.0,0.00015999,2]
[418951681,1774630241047,-500.0,0.00015999,2]
[418951682,1774630241056,-500.0,0.00015999,2]
[418951683,1774630241065,-303.20422672,0.00015999,2]
[418951684,1774630241074,-511.71,0.00015999,2]
[418951685,1774630241083,-511.71,0.00015999,2]
[418951686,1774630241092,-511.71,0.00015999,2]
[418951687,1774630241102,-511.71,0.00015999,2]
[418951688,1774630241111,-511.71,0.00015999,2]
[418951689,1774630241120,-511.71,0.00015999,2]
[418951690,1774630241129,-511.71,0.00015999,2]
[418951691,1774630241139,-511.71,0.00015999,2]
[418951692,1774630241150,-511.71,0.00015999,2]
[418951693,1774630241159,-511.71,0.00015999,2]
[418951694,1774630241169,-511.71,0.00015999,2]
[418951695,1774630241179,-511.71,0.00015999,2]
[418951696,1774630241189,-511.71,0.00015999,2]
[418951697,1774630241198,-511.71,0.00015999,2]
[418951698,1774630241207,-511.71,0.00015999,2]
[418951699,1774630241217,-511.71,0.00015999,2]
[418951700,1774630241226,-511.71,0.00015999,2]
[418951701,1774630241236,-511.71,0.00015999,2]
[418951702,1774630241246,-511.71,0.00015999,2]
[418951703,1774630241255,-511.71,0.00015999,2]
[418951704,1774630241264,-511.71,0.00015999,2]
[418951705,1774630241275,-511.71,0.00015999,2]
[418951706,1774630241285,-511.71966266,0.00015999,2]
[418951707,1774630241295,-1222.76,0.00015999,2]
[418951708,1774630241305,-1222.76,0.00015999,2]
[418951709,1774630241314,-1222.76,0.00015999,2]
[418951710,1774630241323,-1222.76,0.00015999,2]
[418951711,1774630241333,-1222.76,0.00015999,2]
[418951712,1774630241342,-1222.76,0.00015999,2]
[418951713,1774630241351,-1222.76,0.00015999,2]
[418951714,1774630241360,-1222.76,0.00015999,2]
[418951715,1774630241369,-1222.76,0.00015999,2]
[418951716,1774630241379,-1222.76,0.00015999,2]
[418951717,1774630241388,-1222.76,0.00015999,2]
[418951718,1774630241397,-1222.76,0.00015999,2]
[418951719,1774630241410,-1222.76,0.00015999,2]
[418951720,1774630241420,-1222.76,0.00015999,2]
[418951721,1774630241429,-1222.76,0.00015999,2]
[418951722,1774630241438,-1222.76,0.00015999,2]
[418951723,1774630241448,-1222.76,0.00015999,2]
[418951724,1774630241457,-1222.76,0.00015999,2]
[418951725,1774630241466,-1222.76,0.00015999,2]
[418951726,1774630241476,-1222.76,0.00015999,2]
[418951727,1774630241486,-1222.76,0.00015999,2]
[418951728,1774630241495,-1222.88398844,0.00015999,2]
[418951729,1774630241504,-500.0,0.00015999,2]
[418951730,1774630241513,-500.0,0.00015999,2]
[418951731,1774630241522,-500.0,0.00015999,2]
[418951732,1774630241531,-500.0,0.00015999,2]
[418951733,1774630241540,-500.0,0.00015999,2]
[418951734,1774630241549,-614.55459126,0.00015999,2]
[418951735,1774630241559,-69420.32508462,0.00016,2]
[418951736,1774630241816,-4378.67181145,0.00016,2]
[418951737,1774630241838,-194785.9858122,0.00016,2]
[418951738,1774630241849,-34000.5,0.00016,2]
[418951739,1774630241859,-410.94785722,0.00016,2]
[418951740,1774630241870,-897.77765572,0.00016,2]
[418951755,1774630246035,-592758.26150296,0.00016,2]
[418951756,1774630246047,-267965.70282076,0.00016,2]
[418951757,1774630246071,-182327.42319245,0.00016,2]
[418951758,1774630246544,-281.32,0.00016,2]
[418951759,1774630246556,-423.79144225,0.00016,2]
[418951760,1774630246567,-53272.5316852,0.00016,2]
[418951777,1774630251861,-338.93060539,0.00016,2]
[418951778,1774630251872,-435.18689339,0.00016,2]
[418951779,1774630251897,-31260.80562397,0.00016,2]
[418951780,1774630251916,-16481.24897068,0.00016,2]
[418951785,1774630256623,506.0,0.00013111,2]
[418951790,1774630313677,504.0,0.00013111,2]
[418951791,1774630328027,368.55,0.00013972,2]
[418951795,1774631236182,-506.0,0.00013111,2]
[418951796,1774631236205,-1852.42,0.00013972,2]
[418951797,1774631236226,-200.0,0.00013972,2]
[418951798,1774631236249,-300.0,0.000151,2]
[418951799,1774631236272,-2000.0,0.00015133,2]
[418951800,1774631236295,-197.74142,0.0001586,2]
[418951801,1774631236320,-500.0,0.00015899,2]
[418951802,1774631236343,-500.0,0.00015899,2]
[418951803,1774631236370,-500.0,0.00015899,2]
[418951804,1774631236393,-500.0,0.00015899,2]
[418951805,1774631236413,-451.1991023,0.000159,2]
[418951806,1774631258293,6739.95448534,8e-05,2]
[418951809,1774631359138,-440.38693982,0.00013111,2]
[418951810,1774631360096,-64.61306018,0.00013111,2]
[418951819,1774631432250,-420.0,0.0001499,2]
[418951820,1774631432263,-2133.98976509,0.0001499,2]
[418951821,1774631432273,-211.10470728,0.00015,2]
[418951822,1774631432298,-1853.77520818,0.00015,2]
[418951823,1774631432308,-962.17425575,0.00015,2]
[418951824,1774631432322,-4034.49575852,0.00015,2]
[418951825,1774631432331,-150.0,0.00015245,2]
[418951826,1774631432341,-161.16,0.00015246,2]
[418951827,1774631432350,-300.0,0.00015899,2]
[418951828,1774631432360,-1112.87657353,0.000159,2]
[418951829,1774631432369,-1635.32083932,0.000159,2]
[418951830,1774631432384,-601.2627983,0.000159,2]
[418951831,1774631432406,-2934.10290639,0.000159,2]
[418951832,1774631432417,-1421.96416629,0.000159,2]
[418951833,1774631432428,-687.0,0.000159,2]
[418951834,1774631432439,-1109.24731293,0.000159,2]
[418951835,1774631432450,-8045.54526625,0.000159,2]
[418951836,1774631432465,-14631.44078254,0.000159,2]
[418951837,1774631432476,-575.08996854,0.000159,2]
[418951838,1774631432485,-554.64750004,0.000159,2]
[418951839,1774631432497,-2746.567596,0.000159,2]
[418951847,1774631440575,-3450.0,0.000159,2]
[418951848,1774631440890,-1381.01200318,0.000159,2]
[418951849,1774631440997,-550.0,0.000159,2]
[418951850,1774631442101,-838.73048206,0.000159,2]
[418951851,1774631442112,-1979.59945729,0.000159,2]
[418951852,1774631442156,-5337.86287019,0.000159,2]
[418951853,1774631442167,-394.92449423,0.000159,2]
[418951854,1774631442178,-3828.72004275,0.000159,2]
[418951855,1774631442211,-248.92841855,0.000159,2]
[418951856,1774631442221,-90.95424119,0.00015973,2]
[418951857,1774631442232,-310.61233311,0.00015973,2]
[418951858,1774631442245,-467.4334257,0.00015973,2]
[418951859,1774631442254,-223.1865743,0.00015973,14]
[418951860,1774631442266,-77.0234257,0.00015973,14]
[418951861,1774631442275,-500.0,0.00015973,2]
[418951862,1774631442284,-500.0,0.00015973,2]
[418951863,1774631442294,-264.31611832,0.0001599,2]
[418951864,1774631442303,-9651.48116325,0.00015995,2]
[418951865,1774631442315,-6275.55825757,0.00015995,2]
[418951866,1774631442345,-973.812232,0.00015995,2]
[418951867,1774631442357,-264.48449264,0.00015995,2]
[418951868,1774631442368,-912.01613995,0.00015995,2]
[418951878,1774631443746,-3039.00816989,0.00015995,2]
[418951879,1774631443756,-353.0,0.00015997,2]
[418951880,1774631443766,-173.34235598,0.00015998,2]
[418951881,1774631443775,-500.0,0.00015998,2]
[418951882,1774631443784,-151.0737,0.00015998,2]
[418951883,1774631443795,-666.0,0.00015999,2]
[418951884,1774631443804,-666.0,0.00015999,2]
[418951885,1774631443813,-500.0,0.00015999,2]
[418951886,1774631443823,-255.70516604,0.00015999,2]
[418951887,1774631444012,-244.29483396,0.00015999,2]
[418951888,1774631444022,-347.19073704,0.00015999,2]
[418951889,1774631446200,-152.80926296,0.00015999,2]
[418951890,1774631446209,-500.0,0.00015999,2]
[418951891,1774631446218,-500.0,0.00015999,2]
[418951892,1774631446228,-500.0,0.00015999,2]
[418951893,1774631446237,-312.63030124,0.00015999,2]
[418951894,1774631446247,-173.335,0.00015999,2]
[418951895,1774631446256,-500.0,0.00015999,2]
[418951896,1774631446265,-351.69444224,0.00015999,2]
[418951897,1774631446466,-148.30555776,0.00015999,2]
[418951898,1774631446477,-298.4,0.00015999,2]
[418951899,1774631446486,-1120.86,0.00015999,2]
[418951900,1774631446496,-1120.86,0.00015999,2]
[418951901,1774631446505,-1120.86,0.00015999,2]
[418951902,1774631446514,-1120.86,0.00015999,2]
[418951903,1774631446524,-1120.86,0.00015999,2]
[418951904,1774631446533,-1120.86,0.00015999,2]
[418951905,1774631446543,-1120.86,0.00015999,2]
[418951906,1774631446552,-1120.86,0.00015999,2]
[418951907,1774631446562,-1120.86,0.00015999,2]
[418951908,1774631446571,-1120.86,0.00015999,2]
[418951909,1774631446580,-1120.86,0.00015999,2]
[418951910,1774631446590,-1120.86,0.00015999,2]
[418951911,1774631446599,-1120.86,0.00015999,2]
[418951912,1774631446608,-1120.86,0.00015999,2]
[418951913,1774631446618,-1120.86,0.00015999,2]
[418951914,1774631446627,-1120.86,0.00015999,2]
[418951915,1774631446636,-1120.86,0.00015999,2]
[418951916,1774631446646,-1120.86,0.00015999,2]
[418951917,1774631446655,-304.87558036,0.00015999,2]
[418951918,1774631446682,-815.98441964,0.00015999,2]
[418951919,1774631446692,-1120.86,0.00015999,2]
[418951920,1774631446701,-1120.86,0.00015999,2]
[418951921,1774631446710,-1120.86,0.00015999,2]
[418951922,1774631446719,-1120.86,0.00015999,2]
[418951923,1774631446728,-1121.06398844,0.00015999,2]
[418951924,1774631446737,-333.93008204,0.00015999,2]
[418951925,1774631446848,-166.06991796,0.00015999,2]
[418951926,1774631446858,-254.60937202,0.00015999,2]
[418951927,1774631446874,-245.39062798,0.00015999,2]
[418951928,1774631446884,-500.0,0.00015999,2]
[418951929,1774631446895,-500.0,0.00015999,2]
[418951930,1774631446904,-57.58116749,0.00015999,2]
[418951947,1774631453553,150.0,0.00013972,2]
[418951948,1774631466992,184.0,0.00013972,3]
[418951949,1774631508582,200.0,0.00013972,2]
[418951951,1774632439143,-505.0,0.00013111,2]
[418951952,1774632439168,-8361.02410125,0.000136,2]
[418951953,1774632447069,-555.74723294,0.000136,2]
[418951954,1774632552135,-363.96,0.00013225,2]
[418951955,1774632552158,-1083.22866581,0.000136,2]
[418951956,1774632552181,-5293.49300219,0.000136,2]
[418951957,1774632556098,-4706.50699781,0.000136,2]
[418951958,1774632556119,-385.90537129,0.000136,2]
[418951959,1774632559102,-8039.74970194,0.000136,2]
[418951962,1774632633518,-1574.34492677,0.000136,2]
[418951963,1774632633528,-979.0,0.000136,2]
[418951964,1774632633537,-2724.33297305,0.000136,7]
[418951965,1774632633553,-6986.66702695,0.000136,7]
[418951967,1774632633562,-952.25,0.00013972,2]
[418951969,1774632633572,-184.0,0.00013972,3]
[418951970,1774632633581,-163.0,0.00013972,3]
[418951972,1774632633590,-166.66,0.00014006,2]
[418951973,1774632633601,-151.0,0.00014245,2]
[418951974,1774632633611,-166.66,0.00014301,2]
[418951975,1774632633622,-592.3346425,0.00014321,2]
[418951976,1774632633633,-166.66,0.00014596,2]
[418951977,1774632633643,-150.0,0.000146,2]
[418951978,1774632633652,-668.16,0.00014616,2]
[418951979,1774632633661,-952.25,0.0001467,2]
[418951980,1774632633670,-166.66,0.00014891,2]
[418951982,1774632633680,-3240.0,0.00015162,2]
[418951984,1774632633689,-500.0,0.00015171,2]
[418951985,1774632633699,-194.72792766,0.00015171,2]
[418951986,1774632633708,-500.0,0.00015171,2]
[418951987,1774632633718,-500.0,0.00015171,2]
[418951988,1774632633727,-500.0,0.00015171,2]
[418951989,1774632633736,-500.0,0.00015171,2]
[418951990,1774632633746,-500.0,0.00015171,2]
[418951991,1774632633755,-500.0,0.00015171,2]
[418951992,1774632633764,-500.0,0.00015171,2]
[418951993,1774632633775,-500.0,0.00015171,2]
[418951994,1774632633784,-500.0,0.00015171,2]
[418951995,1774632633794,-500.0,0.00015171,2]
[418951996,1774632633804,-500.0,0.00015171,2]
[418951997,1774632633814,-500.0,0.00015171,2]
[418951998,1774632633823,-500.0,0.00015171,2]
[418951999,1774632633832,-250.0,0.00015171,2]
[418952000,1774632633842,-250.0,0.00015171,2]
[418952001,1774632633851,-250.0,0.00015171,2]
[418952002,1774632633860,-174.61919141,0.00015171,2]
[418952003,1774632633869,-250.0,0.00015171,2]
[418952004,1774632633878,-250.0,0.00015171,2]
[418952005,1774632633888,-743.50770149,0.00015171,2]
[418952006,1774632633898,-166.66,0.00015186,2]
[418952007,1774632633907,-166.66,0.00015203,2]
[418952008,1774632633916,-500.0,0.00015226,2]
[418952009,1774632633925,-500.0,0.00015281,2]
[418952010,1774632633934,-500.0,0.00015336,2]
[418952011,1774632633944,-562.57,0.00015341,2]
[418952012,1774632633954,-952.25,0.00015369,2]
[418952013,1774632633964,-500.0,0.00015479,2]
[418952014,1774632633973,-166.66,0.00015481,2]
[418952015,1774632633982,-343.0012146,0.000155,2]
[418952016,1774632633994,-2068.68,0.00015507,2]
[418952017,1774632634004,-251.08,0.00015656,2]
[418952018,1774632634015,-166.66,0.00015705,2]
[418952019,1774632634025,-201.93286099,0.00015719,2]
[418952020,1774632634035,-181.08010149,0.00015719,2]
[418952021,1774632634045,-771.01748645,0.00015719,2]
[418952022,1774632634055,-176.0,0.00015753,2]
[418952023,1774632634066,-424.0,0.00015781,2]
[418952024,1774632634076,-737.0,0.00015781,2]
[418952025,1774632634088,-2000.0,0.0001589,2]
[418952026,1774632634098,-2068.68,0.00015895,2]
[418952027,1774632634108,-321.9426176,0.00015899,2]
[418952028,1774632634119,-321.94261758,0.00015899,2]
[418952029,1774632634129,-321.94261758,0.00015899,2]
[418952030,1774632634140,-321.94261758,0.00015899,2]
[418952031,1774632634149,-321.94261758,0.00015899,2]
[418952032,1774632634159,-321.94261758,0.000159,2]
[418952033,1774632634170,-321.94261758,0.000159,2]
[418952034,1774632634180,-321.94261758,0.000159,2]
[418952035,1774632634189,-321.94261758,0.000159,2]
[418952036,1774632634199,-1340.63629356,0.000159,2]
[418952037,1774632634208,-7761.03874332,0.000159,2]
[418952038,1774632634224,-994.88176241,0.000159,2]
[418952039,1774632634237,-1244.07949427,0.000159,2]
[418952040,1774632634248,-321.94261758,0.000159,2]
[418952041,1774632634257,-342.33726287,0.000159,2]
[418952042,1774632634274,-6817.24270257,0.000159,2]
[418952044,1774632637505,-351.4436786,0.000159,2]
[418952045,1774632637824,-1611.3721688,0.000159,2]
[418952046,1774632637834,-453.79840138,0.000159,2]
[418952047,1774632637843,-301.9961189,0.000159,2]
[418952048,1774632637853,-3512.27566456,0.000159,2]
[418952049,1774632637862,-500.0,0.00015973,2]
[418952050,1774632637871,-298.53072441,0.0001599,2]
[418952051,1774632637883,-207.27927559,0.0001599,2]
[418952052,1774632637893,-666.0,0.00015999,2]
[418952053,1774632637902,-982.57667537,0.00015999,2]
[418952065,1774632640053,-5424.24709913,0.00015999,2]
[418952066,1774632640063,-1083.0977867,0.00015999,2]
[418952067,1774632640072,-500.0,0.00015999,2]
[418952068,1774632640243,-500.0,0.00015999,2]
[418952069,1774632640253,-500.0,0.00015999,2]
[418952070,1774632640263,-500.0,0.00015999,2]
[418952071,1774632640273,-500.0,0.00015999,2]
[418952072,1774632640283,-500.0,0.00015999,2]
[418952073,1774632640293,-500.0,0.00015999,2]
[418952074,1774632640302,-614.55459126,0.00015999,2]
[418952075,1774632640311,-500.0,0.00015999,2]
[418952076,1774632640320,-500.0,0.00015999,2]
[418952077,1774632640330,-418.33985132,0.00015999,2]
[418952078,1774632640339,-500.0,0.00015999,2]
[418952079,1774632640348,-500.0,0.00015999,2]
[418952080,1774632640358,-500.0,0.00015999,2]
[418952081,1774632640379,-500.0,0.00015999,2]
[418952082,1774632640389,-500.0,0.00015999,2]
[418952083,1774632640400,-500.0,0.00015999,2]
[418952084,1774632640410,-500.0,0.00015999,2]
[418952085,1774632640420,-415.88455514,0.00015999,2]
[418952086,1774632640430,-500.0,0.00015999,2]
[418952087,1774632640440,-500.0,0.00015999,2]
[418952088,1774632640450,-500.0,0.00015999,2]
[418952089,1774632640460,-500.0,0.00015999,2]
[418952090,1774632640470,-500.0,0.00015999,2]
[418952091,1774632640480,-500.0,0.00015999,2]
[418952092,1774632640489,-500.0,0.00015999,2]
[418952093,1774632640499,-500.0,0.00015999,2]
[418952094,1774632640509,-500.0,0.00015999,2]
[418952095,1774632640519,-500.0,0.00015999,2]
[418952096,1774632640529,-500.0,0.00015999,2]
[418952098,1774632640539,-500.0,0.00015999,2]
[418952099,1774632640548,-500.0,0.00015999,2]
[418952100,1774632640558,-500.0,0.00015999,2]
[418952101,1774632640568,-500.0,0.00015999,2]
[418952102,1774632640578,-500.0,0.00015999,2]
[418952103,1774632640588,-500.0,0.00015999,2]
[418952104,1774632640597,-500.0,0.00015999,2]
[418952105,1774632640607,-500.0,0.00015999,2]
[418952106,1774632640617,-500.0,0.00015999,2]
[418952107,1774632640627,-500.0,0.00015999,2]
[418952108,1774632640637,-500.0,0.00015999,2]
[418952109,1774632640647,-500.0,0.00015999,2]
[418952110,1774632640656,-269.33966266,0.00015999,2]
[418952111,1774632640667,-500.0,0.00015999,2]
[418952112,1774632640677,-500.0,0.00015999,2]
[418952113,1774632640687,-500.0,0.00015999,2]
[418952114,1774632640697,-500.0,0.00015999,2]
[418952115,1774632640706,-223.51493092,0.00015999,2]
[418952116,1774632640721,-276.48506908,0.00015999,2]
[418952117,1774632640731,-49.54993092,0.00015999,2]
[418952119,1774632640766,-450.45006908,0.00015999,2]
[418952120,1774632640776,-500.0,0.00015999,2]
[418952121,1774632640785,-500.0,0.00015999,2]
[418952122,1774632640795,-500.0,0.00015999,2]
[418952123,1774632640805,-500.0,0.00015999,2]
[418952124,1774632640814,-500.0,0.00015999,2]
[418952125,1774632640824,-500.0,0.00015999,2]
[418952126,1774632640834,-500.0,0.00015999,2]
[418952127,1774632640843,-500.0,0.00015999,2]
[418952128,1774632640853,-500.0,0.00015999,2]
[418952129,1774632640863,-500.0,0.00015999,2]
[418952130,1774632640873,-500.0,0.00015999,2]
[418952131,1774632640883,-500.0,0.00015999,2]
[418952132,1774632640892,-500.0,0.00015999,2]
[418952133,1774632640902,-500.0,0.00015999,2]
[418952134,1774632640913,-500.0,0.00015999,2]
[418952135,1774632640923,-500.0,0.00015999,2]
[418952136,1774632640932,-500.0,0.00015999,2]
[418952137,1774632640942,-500.0,0.00015999,2]
[418952138,1774632640952,-500.0,0.00015999,2]
[418952139,1774632640962,-500.0,0.00015999,2]
[418952140,1774632640972,-500.0,0.00015999,2]
[418952141,1774632640985,-500.0,0.00015999,2]
[418952142,1774632640995,-500.0,0.00015999,2]
[418952143,1774632641005,-500.0,0.00015999,2]
[418952144,1774632641016,-500.0,0.00015999,2]
[418952145,1774632641027,-500.0,0.00015999,2]
[418952146,1774632641037,-500.0,0.00015999,2]
[418952147,1774632641049,-500.0,0.00015999,2]
[418952148,1774632641059,-500.0,0.00015999,2]
[418952149,1774632641068,-500.0,0.00015999,2]
[418952150,1774632641078,-500.0,0.00015999,2]
[418952151,1774632641087,-500.0,0.00015999,2]
[418952152,1774632641097,-500.0,0.00015999,2]
[418952153,1774632641107,-500.0,0.00015999,2]
[418952154,1774632641117,-500.0,0.00015999,2]
[418952155,1774632641126,-500.0,0.00015999,2]
[418952156,1774632641136,-500.0,0.00015999,2]
[418952157,1774632641146,-500.0,0.00015999,2]
[418952158,1774632641157,-500.0,0.00015999,2]
[418952159,1774632641167,-500.0,0.00015999,2]
[418952160,1774632641177,-500.0,0.00015999,2]
[418952161,1774632641187,-500.0,0.00015999,2]
[418952162,1774632641197,-500.0,0.00015999,2]
[418952163,1774632641206,-500.0,0.00015999,2]
[418952164,1774632641216,-500.0,0.00015999,2]
[418952165,1774632641226,-500.0,0.00015999,2]
[418952166,1774632641236,-500.0,0.00015999,2]
[418952167,1774632641245,-500.0,0.00015999,2]
[418952168,1774632641255,-500.0,0.00015999,2]
[418952169,1774632641265,-500.0,0.00015999,2]
[418952170,1774632641275,-500.0,0.00015999,2]
[418952171,1774632641285,-500.0,0.00015999,2]
[418952172,1774632641295,-500.0,0.00015999,2]
[418952173,1774632641304,-500.0,0.00015999,2]
[418952174,1774632641315,-500.0,0.00015999,2]
[418952175,1774632641325,-500.0,0.00015999,2]
[418952176,1774632641335,-500.0,0.00015999,2]
[418952177,1774632641344,-500.0,0.00015999,2]
[418952178,1774632641354,-199.01461203,0.00015999,2]
[418952179,1774632641364,-500.0,0.00015999,2]
[418952180,1774632641374,-500.0,0.00015999,2]
[418952181,1774632641383,-500.0,0.00015999,2]
[418952182,1774632641397,-500.0,0.00015999,2]
[418952183,1774632641407,-500.0,0.00015999,2]
[418952184,1774632641417,-500.0,0.00015999,2]
[418952185,1774632641426,-500.0,0.00015999,2]
[418952186,1774632641437,-500.0,0.00015999,2]
[418952187,1774632641446,-500.0,0.00015999,2]
[418952188,1774632641456,-500.0,0.00015999,2]
[418952189,1774632641465,-500.0,0.00015999,2]
[418952190,1774632641476,-500.0,0.00015999,2]
[418952191,1774632641486,-500.0,0.00015999,2]
[418952192,1774632641496,-500.0,0.00015999,2]
[418952193,1774632641506,-500.0,0.00015999,2]
[418952194,1774632641515,-500.0,0.00015999,2]
[418952195,1774632641527,-500.0,0.00015999,2]
[418952196,1774632641537,-500.0,0.00015999,2]
[418952197,1774632641547,-500.0,0.00015999,2]
[418952198,1774632641557,-500.0,0.00015999,2]
[418952199,1774632641567,-500.0,0.00015999,2]
[418952200,1774632641578,-342.92409801,0.00015999,2]
[418952201,1774632641588,-500.0,0.00015999,2]
[418952202,1774632641599,-500.0,0.00015999,2]
[418952203,1774632641610,-500.0,0.00015999,2]
[418952204,1774632641620,-500.0,0.00015999,2]
[418952205,1774632641630,-500.0,0.00015999,2]
[418952206,1774632641641,-500.0,0.00015999,2]
[418952207,1774632641651,-500.0,0.00015999,2]
[418952208,1774632641661,-500.0,0.00015999,2]
[418952209,1774632641673,-500.0,0.00015999,2]
[418952210,1774632641682,-500.0,0.00015999,2]
[418952211,1774632641692,-500.0,0.00015999,2]
[418952212,1774632641702,-500.0,0.00015999,2]
[418952213,1774632641712,-500.0,0.00015999,2]
[418952214,1774632641723,-500.0,0.00015999,2]
[418952215,1774632641733,-500.0,0.00015999,2]
[418952216,1774632641743,-500.0,0.00015999,2]
[418952217,1774632641754,-500.0,0.00015999,2]
[418952218,1774632641764,-500.0,0.00015999,2]
[418952219,1774632641775,-500.0,0.00015999,2]
[418952220,1774632641784,-500.0,0.00015999,2]
[418952221,1774632641794,-500.0,0.00015999,2]
[418952222,1774632641805,-500.0,0.00015999,2]
[418952223,1774632641816,-303.20422672,0.00015999,2]
[418952224,1774632641826,-500.0,0.00015999,2]
[418952225,1774632641835,-500.0,0.00015999,2]
[418952226,1774632641845,-261.84539545,0.00015999,2]
[418952227,1774632641854,-500.0,0.00015999,2]
[418952228,1774632641864,-500.0,0.00015999,2]
[418952229,1774632641875,-317.86886857,0.00015999,2]
[418952230,1774632641885,-500.0,0.00015999,2]
[418952231,1774632641896,-500.0,0.00015999,2]
[418952232,1774632641906,-582.92731406,0.00015999,2]
[418952233,1774632641916,-356.87322004,0.00015999,2]
[418952234,1774632641925,-2182.0,0.00016,5]
[418952235,1774632641935,-2422.0,0.00016,5]
[418952236,1774632641945,-1670957.41858981,0.00016,2]